Cogmind - Beta 16 @@@ ROGUE MODE // 2025.11.16 @ 17:09:43 Player: FrigidRock Result: Destroyed by as-76422 with Assembled Heavy Rifle Performance ------------- Evolutions (0) 0 Regions Visited (4) 800 Robots Destroyed (2) 10 Value Destroyed (68) 68 Prototype IDs (0) 0 Alien Tech Used (0) 0 Bonus (-8) -8 TOTAL SCORE: 870 Bonus ------- Friendly Fire -8 Cogmind --------- Core Integrity 0/250 Matter 300/300 Energy 100/100 System Corruption 0% Temperature Cool (20) Movement Core (50) Location -9/Mines Parts ------- > --- POWER (1) -------- (None) > --- PROPULSION (2) --- (None) > --- UTILITY (2) ------ (None) > --- WEAPON (2) ------- (None) > --- INVENTORY (5) ---- Ion Engine Light Ion Engine Aluminum Leg Aluminum Leg Medium Storage Unit Peak State ------------ > --- POWER ------------ Ion Engine > --- PROPULSION ------- Aluminum Leg Aluminum Leg > --- UTILITY ---------- Small Storage Unit Medium Storage Unit > --- WEAPON ----------- Light Assault Rifle Light Assault Rifle > --- INVENTORY -------- Ion Engine Ion Engine Light Ion Engine Aluminum Leg Aluminum Leg Aluminum Leg [Rating: 7] Favorites ----------- Power Ion Engine Engine Ion Engine Propulsion Aluminum Leg Leg Aluminum Leg Utility Small Storage Unit Storage Small Storage Unit Weapon Light Assault Rifle Ballistic Gun Light Assault Rifle Build | -11 -10 -10 -10 -9 ------- Run | Yrd Mat Min Exi Min Slots Evolved . | . . . . . Power . | . . . . . Propulsion . | . . . . . Utility . | . . . . . Weapon . | . . . . . Parts Attached 11 | 6 2 . 1 2 Power 3 | 1 1 . . 1 Engine 3 | 1 1 . . 1 Core . | . . . . . Reactor . | . . . . . Propulsion 4 | 2 1 . . 1 Treads . | . . . . . Leg 4 | 2 1 . . 1 Wheel . | . . . . . Hover . | . . . . . Flight . | . . . . . Utility 2 | 1 . . 1 . Device . | . . . . . Storage 2 | 1 . . 1 . Processor . | . . . . . Hackware . | . . . . . Protection . | . . . . . Artifact . | . . . . . Weapon 2 | 2 . . . . Energy Gun . | . . . . . Energy Cannon . | . . . . . Ballistic Gun 2 | 2 . . . . Ballistic Cannon . | . . . . . Launcher . | . . . . . Special Weapon . | . . . . . Impact Weapon . | . . . . . Slashing Weapon . | . . . . . Piercing Weapon . | . . . . . Special Melee Weapon . | . . . . . Unidentified Prototypes . | . . . . . Parts Lost 6 | . . . . 6 Power 1 | . . . . 1 Propulsion 3 | . . . . 3 Utility . | . . . . . Weapon 2 | . . . . 2 Highest Loss Streak 6 | . . . . 6 To Critical Strikes . | . . . . . Average Backups 4 | . 2 6 6 7 Power 2 | . 1 3 3 2 Propulsion 2 | . . 3 3 3 Utility . | . . . . 2 Weapon . | . . . . . Tool/Special . | . . . . . Unused Backups 3 | . . . . 3 Power 1 | . . . . 1 Propulsion 1 | . . . . 1 Utility 1 | . . . . 1 Weapon . | . . . . . Tool/Special . | . . . . . Average Slot Usage (%) 84 | . 85 85 85 70 Engine 13 | . 14 14 14 9 Leg 27 | . 28 28 28 25 Storage 13 | . 14 14 14 11 Ballistic Gun 27 | . 28 28 28 23 Peak Build Rating 7 | 6 6 6 7 6 Average Rating 5 | 4 5 6 6 4 On Entrance 4 | . 6 6 6 6 Avg Prop Armor Cover (%) . | . . . . . Naked Turns 2 | . . . . 2 Heaviest Build 17 | 12 12 12 17 17 Greatest Support 20 | 20 20 20 20 20 Greatest Overweight (x) . | . . . . . Average Overweight (x) . | . . . . . Largest Inventory Capacity 10 | 8 8 8 10 10 Average Capacity 8 | 6 8 8 8 9 Most Carried 8 | 1 6 6 8 8 Average Carried 4 | . 2 6 6 7 Final Capacity 10 | 8 8 8 10 5 Final Carried 8 | 1 6 6 8 5 Class Distribution -------------------- 100% | Mutant Dominant Class ---------------- Mutant | -10/Materials Mutant | -10/Mines Mutant | -10/Exiles Mutant | -9/Mines Resources | -11 -10 -10 -10 -9 ----------- Run | Yrd Mat Min Exi Min Matter Collected 322 | 212 110 . . . Remotely . | . . . . . Salvage Created 73 | . 73 . . . Parts 3 | . 3 . . . Haulers Intercepted . | . . . . . Recyclers Shooed . | . . . . . Parts Field Recycled . | . . . . . Retrieved Matter . | . . . . . Parts Self-Destructed . | . . . . . Prevented . | . . . . . Parts Restored . | . . . . . Kills | -11 -10 -10 -10 -9 ------- Run | Yrd Mat Min Exi Min Combat Hostiles Destroyed 2 | . 2 . . . Guns 2 | . 2 . . . Classes Destroyed 1 | . 1 . . . Grunt 2 | . 2 . . . Best Kill Streak 2 | . 2 . . . Combat Bots Only 2 | . 2 . . . Max Kills in Single Turn 1 | . 1 . . . Gunslinging . | . . . . . Exploded . | . . . . . Melee . | . . . . . Uniques/NPCs Destroyed . | . . . . . Combat | -11 -10 -10 -10 -9 -------- Run | Yrd Mat Min Exi Min Hostile Shots Fired 81 | . 25 . . 56 Missed 21 | . 5 . . 16 Hits 60 | . 20 . . 40 Melee 5 | . . . . 5 Projectile 55 | . 20 . . 35 Critical Strikes 1 | . . . . 1 Part Disruptions 3 | . . . . 3 Damage Taken 807 | . 224 . . 583 Core 260 | . 39 . . 221 Absorbed by Shields . | . . . . . Core Remaining (%) 100 | 100 . . . . Volleys Fired 21 | . 16 1 . 4 Largest 2 | . 2 2 . 2 Hottest 40 | . 40 40 . 40 Shots Fired 42 | . 32 2 . 8 Gun 42 | . 32 2 . 8 Cannon . | . . . . . Launcher . | . . . . . Special . | . . . . . Kinetic 42 | . 32 2 . 8 Thermal . | . . . . . Explosive . | . . . . . Electromagnetic . | . . . . . Robot Hit Streak 7 | . 7 1 . 4 Robot Miss Streak 4 | . 4 1 . 2 Penetration Max . | . . . . . Secondary Targets . | . . . . . Shots Hit Robots 28 | . 22 1 . 5 Core Hits 9 | . 6 1 . 2 Critical Kills . | . . . . . Critical Parts Destroyed . | . . . . . Critical Strikes . | . . . . . Melee Attacks . | . . . . . Impact . | . . . . . Slashing . | . . . . . Piercing . | . . . . . Sneak Attacks . | . . . . . Combat Hostiles . | . . . . . Follow-up Attacks . | . . . . . Damage Inflicted 251 | . 197 8 . 46 Guns 242 | . 197 8 . 37 Cannons . | . . . . . Explosions . | . . . . . Melee . | . . . . . Ramming 9 | . . . . 9 Kinetic 242 | . 197 8 . 37 Thermal . | . . . . . Explosive . | . . . . . Electromagnetic . | . . . . . Impact . | . . . . . Slashing . | . . . . . Piercing . | . . . . . Highest Corruption . | . . . . . Average Corruption . | . . . . . Corruption Purged . | . . . . . Corruption Blocked . | . . . . . Overload Shots . | . . . . . Overflow Damage . | . . . . . Projectiles . | . . . . . Explosions . | . . . . . Melee . | . . . . . Knockbacks . | . . . . . Impact . | . . . . . Kinetic . | . . . . . Secondary . | . . . . . Self-Inflicted Damage . | . . . . . Shots . | . . . . . Rammed . | . . . . . Targets Rammed 5 | . . . . 5 Kicked 5 | . . . . 5 Crushed . | . . . . . Highest Temperature 40 | . 12 . . 40 Average Temperature 13 | . 8 . . 22 Received Heat Transfer 440 | . 120 . . 320 Siege Activations . | . . . . . Martial Activations . | . . . . . Shielding Activations . | . . . . . Robots Disrupted . | . . . . . Combat Hostiles . | . . . . . Robots Corrupted . | . . . . . Combat Hostiles . | . . . . . Parts Fried . | . . . . . Impact Corruptions . | . . . . . Robots Melted . | . . . . . Combat Hostiles . | . . . . . Parts Melted . | . . . . . Heat Transferred . | . . . . . Parts Sabotaged . | . . . . . Parts Stolen . | . . . . . Parts Stripped . | . . . . . Power Chain Reactions . | . . . . . Alert | -11 -10 -10 -10 -9 ------- Run | Yrd Mat Min Exi Min Maximum Alert Level . | . . . . . Low Security (%) 100 | 100 100 100 . 100 Level 1 . | . . . . . Level 2 . | . . . . . Level 3 . | . . . . . Level 4 . | . . . . . Level 5 . | . . . . . High Security . | . . . . . Max Security . | . . . . . Peak Influence 30 | . 30 . . . Initial . | . . . . . Average 2 | . 6 . . . Influence Increases 70 | . 70 . . . Destroy 0b10 Robot/C 40 | . 40 . . . Select Force Hacks 30 | . 30 . . . Influence Decreases 70 | . 70 . . . Time Decay 70 | . 70 . . . Squads Dispatched 3 | . 3 . . . Investigation 1 | . 1 . . . Extermination . | . . . . . Reinforcement 2 | . 2 . . . Assault . | . . . . . Garrison . | . . . . . Intercept . | . . . . . Searches Triggered . | . . . . . Construction Impeded . | . . . . . Haulers Reinforced . | . . . . . Active Scanning Responses . | . . . . . Cargo Convoy Interrupts . | . . . . . Stealth | -11 -10 -10 -10 -9 --------- Run | Yrd Mat Min Exi Min Distress Signals . | . . . . . Communications Jammed . | . . . . . Distress Signals . | . . . . . Times Spotted 24 | . 8 . . 16 Peak Tracking Total 20 | . 3 . . 20 Tactical Retreats 2 | . . . . 2 Traps | -11 -10 -10 -10 -9 ------- Run | Yrd Mat Min Exi Min Traps Triggered 1 | . 1 . . . Indirectly . | . . . . . Trap Hack Attempts . | . . . . . Triggered . | . . . . . Disarmed . | . . . . . Reprogrammed . | . . . . . Reused . | . . . . . Traps Extracted . | . . . . . Installed . | . . . . . Triggered . | . . . . . Machines | -11 -10 -10 -10 -9 ---------- Run | Yrd Mat Min Exi Min Machines Disabled . | . . . . . Max in Single Turn . | . . . . . Machines Repaired . | . . . . . Machines Dismantled . | . . . . . Machines Sabotaged . | . . . . . Overloaded Fab Kills . | . . . . . Hacking | -11 -10 -10 -10 -9 --------- Run | Yrd Mat Min Exi Min Machines Accessed 5 | . 4 . 1 . Terminals 3 | . 3 . . . Fabricators . | . . . . . Repair Stations . | . . . . . Recycling Units 1 | . 1 . . . Scanalyzers . | . . . . . Garrison Access . | . . . . . Total Hacks 15 | . 11 . 4 . Successful 6 | . 2 . 4 . Failed 9 | . 9 . . . Catastrophic 1 | . 1 . . . Database Lockouts . | . . . . . Manual 11 | . 11 . . . Terminals 9 | . 9 . . . Fabricators . | . . . . . Repair Stations . | . . . . . Recycling Units 2 | . 2 . . . Scanalyzers . | . . . . . Garrison Access . | . . . . . Terminal Hacks 4 | . . . 4 . Record 4 | . . . 4 . Fabricator Hacks . | . . . . . Repair Station Hacks . | . . . . . Recycling Unit Hacks . | . . . . . Scanalyzer . | . . . . . Garrison Access Hacks . | . . . . . Unauthorized Hacks 2 | . 2 . . . Terminals 1 | . 1 . . . Botnet 1 | . 1 . . . Fabricators . | . . . . . Repair Stations . | . . . . . Recycling Units 1 | . 1 . . . Tunnel 1 | . 1 . . . Scanalyzers . | . . . . . Garrison Access . | . . . . . Data Cores Recovered . | . . . . . Used . | . . . . . Hacking Detections 3 | . 3 . . . Full Trace Events . | . . . . . Feedback Events . | . . . . . Feedback Blocked . | . . . . . Robot Schematics Acquired . | . . . . . Robots Built . | . . . . . Authchips . | . . . . . Time . | . . . . . Total Robot Build Rating . | . . . . . Part Schematics Acquired . | . . . . . Parts Built . | . . . . . Authchips . | . . . . . Time . | . . . . . Total Part Build Rating . | . . . . . Part Studies Acquired . | . . . . . Parts Repaired . | . . . . . Time . | . . . . . Parts Recycled . | . . . . . Recycled Matter . | . . . . . Retrieved Matter . | . . . . . Retrieved Components . | . . . . . Parts Scanalyzed . | . . . . . Part Schematics Acquired . | . . . . . Parts Damaged . | . . . . . Bothacking | -11 -10 -10 -10 -9 ------------ Run | Yrd Mat Min Exi Min Used RIF Installer . | . . . . . Robots Hacked . | . . . . . Non-combat . | . . . . . Combat . | . . . . . Robot Hacks Applied . | . . . . . Relay Couplers Released . | . . . . . Fabnet Peak Effective % . | . . . . . Robots Rewired . | . . . . . Allies Hacked . | . . . . . Hacks Repelled . | . . . . . Allies | -11 -10 -10 -10 -9 -------- Run | Yrd Mat Min Exi Min Total Allies . | . . . . . Largest Group . | . . . . . Highest-Rated Group . | . . . . . Highest-Rated Ally . | . . . . . Total Orders . | . . . . . Ally Attacks . | . . . . . Total Damage . | . . . . . Kills . | . . . . . Allies Corrupted . | . . . . . Allies Melted . | . . . . . Intel | -11 -10 -10 -10 -9 ------- Run | Yrd Mat Min Exi Min Active Infowar (turns) . | . . . . . Robot Analysis Total . | . . . . . Derelict Logs Recovered 3 | . . 3 . . Drone Launches . | . . . . . Drone Recoveries . | . . . . . Exploration | -11 -10 -10 -10 -9 ------------- Run | Yrd Mat Min Exi Min Turns Passed 951 | 51 263 352 239 46 Spaces Moved 659 | 37 175 230 197 20 Core 4 | 4 . . . . Treads . | . . . . . Legs 655 | 33 175 230 197 20 Wheels . | . . . . . Hover . | . . . . . Flight . | . . . . . Fastest Speed 50 | 50 120 120 120 120 Average Speed 119 | 112 120 120 120 120 Slowest Speed 120 | 120 120 120 120 120 Overloaded Moves . | . . . . . Propulsion Burnouts . | . . . . . Robots Hopped . | . . . . . Potential Cave-ins . | . . . . . Cave-ins Triggered . | . . . . . Exploration Rate (%) 29 | 4 42 41 53 9 Regions Visited 4 Branch Regions 3 Pre-discovered Areas 3 | . 1 1 1 . Known Exits Taken . | . . . . . Unknown Exits Taken 4 | 1 1 1 1 . Scrap Searched 1 | . . 1 . . Spaces Dug . | . . . . . Terrain Destroyed . | . . . . . Melee . | . . . . . Projectile . | . . . . . AOE . | . . . . . Terrain Rammed . | . . . . . Walls Destroyed . | . . . . . Machines Disabled . | . . . . . Actions | -11 -10 -10 -10 -9 --------- Run | Yrd Mat Min Exi Min Total 781 | 43 201 304 199 34 Wait 79 | . 5 74 . . Move 655 | 36 174 229 196 20 Hop . | . . . . . Pick Up 6 | 1 3 . 1 1 Fast Attach 8 | 6 1 . 1 . Attach 2 | . . . . 2 Detach 2 | . . . 1 1 Swap 2 | . 2 . . . Drop 1 | . . . . 1 Fire 21 | . 16 1 . 4 Melee . | . . . . . Ram . | . . . . . Kick 5 | . . . . 5 Crush . | . . . . . Escape Stasis . | . . . . . Rewire . | . . . . . Trap . | . . . . . Miscellaneous . | . . . . . Route ------- -11/Scrapyard -10/Materials (discovered 2 exits: [*Mat] / [*Min]) -10/Mines -10/Exiles -9/Mines History --------- Turn | Location | Event 3 | -11/Scrapyard | Discovered new exit (range 16) 52 | -11/Scrapyard | Entered Materials 53 | -10/Materials | Met a group of wandering Federalists 182 | -10/Materials | Discovered new exit (range 8) 251 | -10/Materials | Discovered new exit (range 3) 305 | -10/Materials | Build established: Mutant 315 | -10/Materials | Entered Mines 316 | -10/Mines | Met a Derelict bent on vengeance 518 | -10/Mines | Learned Materials non-interactive machine intel 522 | -10/Mines | Learned 4 Materials zone layouts 661 | -10/Mines | Deemed a non-threat by the Exiles lab entrance 662 | -10/Mines | Discovered new exit (range 5) 667 | -10/Mines | Entered Exiles 697 | -10/Exiles | Met 8R-AWN 718 | -10/Exiles | Met EX-HEX 753 | -10/Exiles | Met EX-BIN 768 | -10/Exiles | Met EX-DEC 781 | -10/Exiles | Learned location of Zion (-6) 849 | -10/Exiles | Discovered new exit (range 10) 906 | -10/Exiles | Entered Mines 907 | -9/Mines | Assembled infested the area 948 | -9/Mines | Core integrity fell below 50% 951 | -9/Mines | Core integrity fell below 20% 952 | -9/Mines | Destroyed by as-76422 with Assembled Heavy Rifle Last Messages --------------- getting out of here and finding a better environment less hostile to science. 00825_ Acquired Med. Storage Unit. 00849_ EXIT=FOUND 00876_ Acquired Lrg. Storage Unit. LOCATION=UNKNOWN GOAL=ESCAPE 00907_ ALERT: Infestation in the mines, dispatching Demolisher response squad. 00935_ Ion Engine destroyed. 00942_ Kicked as-62175 out of the way. 00942_ Aluminum Leg destroyed. 00943_ Lgt. Assault Rifle destroyed. 00944_ Kicked as-74072. 00945_ Aluminum Leg destroyed. 00946_ Dropped Med. Storage Unit. 00948_ Acquired Med. Storage Unit. 00949_ Kicked as-74072 out of the way. 00950_ Kicked as-09848. 00951_ Aluminum Leg destroyed. Map ----- +----------------------------------------------------+ | ?????????????????????????????????? | | ?????????????????????????????????? | | ?????????????????????????????????? | | ?????????????????????????????????? | | ?????????????????????????????????? | | ?????????????????????????????????? | | ?????????????????????????????????? | | ?????????????????????????????????? | | ?????????????????????????????????? | | ?????????????????????????????????? | | ?????????????????????????????????? | | ?????????????????????????????????? | | ?????????????????????????????????? | | ?????????????????????????????????? | | ?????????????????????????????????? | | ?????????????????????????????????? | | ?????????????????????????????????? | | ?????????????????????????????????? | | ?????????????????????????????????? | | ?????????????????????????????????? | | ?????????????????????????????????? | | ????????????????????????###??????? | | ???????????????????????## #####??? | | ???????????????????????# !a ##?? | | ???????????????????????##aa a #?? | | ??????????????????????###@a #?? | | ??????????????????????# aaaa #?? | | ?????????????????????## a!!! #?? | | ???????????????????### #?? | | ??????????????????## ! ! #?? | | ??????????????????# a !!! ##?? | | ??????????????????# ##??? | | ?????????????????## ###???? | | ????????????????## ##?????? | | ???????????????## ##??????? | | ??????????????## #####???????? | | ?" ### ##???????????? | | ? ##????????????? | | ??????# #?????????????? | | ??????## ##?????????????? | | ???????## ##??????????????? | | ????????#########????????????????? | | ?????????????????????????????????? | | ?????????????????????????????????? | | | | | | | | | | | | | +----------------------------------------------------+ Best States ------------- Heat Dissipation 25 Energy Generation 10 Energy Capacity 250 Matter Stores 300 Matter Capacity 300 Sight Range 16 Terrain Scan Density 10 Evasion (%) 55 Item Schematics ----------------- None Robot Schematics ------------------ None Fabricated ------------ Nothing Repaired ---------- Nothing Studied --------- None Alien Tech Used ----------------- None Achievements -------------- None Challenges ------------ None Game ------ Seed ReactionAuthchipArmor Manual? 0 Play Time 00:07:26 Cumulative 408.1 hours Start 2025.11.16 @ 15:58:29 End 2025.11.16 @ 17:09:43 Sessions 2 Manual Loads 0 Difficulty Rogue Special Mode None Game No. 179 Rogue 108 Adventurer 68 Explorer 3 Win Type - Total 34 Types 20/2/3/4/3/0/0/0/0/2 Lore% 79 Gallery% 77 Achievement% 56 Wizard Run 0 Options --------- Layout 0 ASCII 0 Keyboard 0 Movement Numpad Keybinds 0 Fullscreen 1 Font 24/Smallcaps Map View 76x50 Zoom Use 0% Tactical HUD 1 Map Filters NONE Filters NONE Steam 1 RUN: 78bf241c-4119-4864-b560-270a1529fb0d